fUSD/lending_fUSD_20251026
["ID","MTS","AMOUNT","RATE_DAILY","PERIOD"]
[392407896,1761441034796,-500.0,0.00032996,9]
[392407897,1761441034806,-500.0,0.00032996,9]
[392407898,1761441034815,-500.0,0.00032996,9]
[392407899,1761441034825,-500.0,0.00032996,9]
[392407900,1761441034835,-47.01094357,0.00032996,9]
[392407901,1761441035055,-452.98905643,0.00032996,9]
[392407902,1761441035064,-500.0,0.00032996,9]
[392407903,1761441035074,-500.0,0.00032996,9]
[392407904,1761441035083,-500.0,0.00032996,9]
[392407905,1761441035092,-291.16162035,0.00032996,9]
[392407906,1761441035102,-500.0,0.00032996,9]
[392407907,1761441035111,-500.0,0.00032996,9]
[392407908,1761441035120,-500.0,0.00032996,9]
[392407909,1761441035130,-500.0,0.00032996,9]
[392407910,1761441035139,-500.0,0.00032996,9]
[392407911,1761441035148,-237.74793389,0.00032996,9]
[392407912,1761441035161,-262.25206611,0.00032996,9]
[392407913,1761441035170,-395.98024347,0.00032996,9]
[392407914,1761441035209,-454.9276565,0.00032068,2]
[392407915,1761441035220,-233.47402392,0.00032068,2]
[392407916,1761441035229,-169.64721492,0.00032068,2]
[392407917,1761441035399,-518.7544655,0.00032068,2]
[392407918,1761441035411,-688.40168042,0.00032068,2]
[392407919,1761441035420,-75.85410638,0.00032068,2]
[392407920,1761441035436,-612.54757404,0.00032068,2]
[392407921,1761441035445,-53.45242596,0.00032996,9]
[392407922,1761441035469,-688.40168042,0.00032068,2]
[392407923,1761441035478,-688.40168042,0.00032068,2]
[392407924,1761441035487,-50.56733057,0.00032996,9]
[392407925,1761441035496,-500.0,0.00032996,9]
[392407926,1761441035506,-500.0,0.00032996,9]
[392407927,1761441035516,-500.0,0.00032996,9]
[392407928,1761441035525,-500.0,0.00032996,9]
[392407929,1761441035534,-500.0,0.00032996,9]
[392407930,1761441035544,-159.31713009,0.00032996,9]
[392407933,1761441037359,-688.40168042,0.00032068,2]
[392407934,1761441037370,-688.40168042,0.00032068,2]
[392407935,1761441037380,-688.40168042,0.00032068,2]
[392407936,1761441037389,-688.40168042,0.00032068,2]
[392407937,1761441037398,-688.40168042,0.00032068,2]
[392407938,1761441037408,-688.40168042,0.00032068,2]
[392407939,1761441037417,-688.40168042,0.00032068,2]
[392407940,1761441037429,-688.40168042,0.00032068,2]
[392407941,1761441037438,-688.40168042,0.00032068,2]
[392407942,1761441037447,-688.40168042,0.00032068,2]
[392407943,1761441037460,-688.40168042,0.00032068,2]
[392407944,1761441037470,-688.40168042,0.00032068,2]
[392407945,1761441037480,-540.97460635,0.00032068,2]
[392407946,1761441037491,-147.42707407,0.00032068,2]
[392407947,1761441037501,-688.40168042,0.00032068,2]
[392407948,1761441037511,-688.40168042,0.00032068,2]
[392407949,1761441037520,-688.40168042,0.00032068,2]
[392407950,1761441037530,-688.40168042,0.00032068,2]
[392407951,1761441037539,-688.40168042,0.00032068,2]
[392407952,1761441037549,-688.40168042,0.00032068,2]
[392407953,1761441037558,-688.40168042,0.00032068,2]
[392407954,1761441037568,-619.98898181,0.00032068,2]
[392407955,1761441037580,-68.41269861,0.00032068,2]
[392407956,1761441037589,-688.40168042,0.00032068,2]
[392407958,1761441037599,-688.40168042,0.00032068,2]
[392407960,1761441037608,-218.79053224,0.00032068,2]
[392407962,1761441037620,-469.61114818,0.00032068,2]
[392407964,1761441037630,-688.40168042,0.00032068,2]
[392407966,1761441037639,-688.40168042,0.00032068,2]
[392407969,1761441037653,-688.40168042,0.00032068,2]
[392407971,1761441037663,-688.40168042,0.00032068,2]
[392407973,1761441037672,-688.40168042,0.00032068,2]
[392407974,1761441037682,-688.40168042,0.00032068,2]
[392407976,1761441037692,-688.40168042,0.00032068,2]
[392407978,1761441037702,-688.40168042,0.00032068,2]
[392407979,1761441037711,-688.40168042,0.00032068,2]
[392407980,1761441037720,-688.40168042,0.00032068,2]
[392407981,1761441037729,-688.40168042,0.00032068,2]
[392407982,1761441037739,-688.40168042,0.00032068,2]
[392407983,1761441037748,-688.40168042,0.00032068,2]
[392407984,1761441037758,-688.40168042,0.00032068,2]
[392407985,1761441037767,-688.40168042,0.00032068,2]
[392407986,1761441037776,-688.40168042,0.00032068,2]
[392407987,1761441037786,-688.40168042,0.00032068,2]
[392407988,1761441037795,-688.40168042,0.00032068,2]
[392407989,1761441037805,-688.40168042,0.00032068,2]
[392407990,1761441037815,-688.40168042,0.00032068,2]
[392407991,1761441037824,-688.40168042,0.00032068,2]
[392407992,1761441037833,-6458.0,0.00032993,2]
[392407993,1761441037845,-340.68286991,0.00032996,9]
[392407994,1761441037854,-500.0,0.00032996,9]
[392407995,1761441037864,-500.0,0.00032996,9]
[392407996,1761441037875,-500.0,0.00032996,9]
[392407997,1761441037884,-500.0,0.00032996,9]
[392407998,1761441037894,-500.0,0.00032996,9]
[392407999,1761441037903,-659.35,0.00032996,9]
[392408000,1761441037912,-500.0,0.00032996,9]
[392408001,1761441037921,-500.0,0.00032996,9]
[392408002,1761441037931,-261.99495169,0.00032996,9]
[392408003,1761441037940,-500.0,0.00032996,2]
[392408004,1761441037949,-517.97532495,0.00032996,9]
[392408005,1761441037958,-500.0,0.00032996,9]
[392408006,1761441037968,-529.33,0.00032996,9]
[392408007,1761441037976,-500.0,0.00032996,9]
[392408008,1761441037985,-500.0,0.00032996,9]
[392408009,1761441037995,-500.0,0.00032996,9]
[392408010,1761441038004,-500.0,0.00032996,9]
[392408011,1761441038014,-500.0,0.00032996,9]
[392408012,1761441038023,-500.0,0.00032996,9]
[392408013,1761441038033,-500.0,0.00032996,9]
[392408014,1761441038043,-500.0,0.00032996,9]
[392408015,1761441038053,-500.0,0.00032996,9]
[392408016,1761441038062,-500.0,0.00032996,9]
[392408017,1761441038071,-500.0,0.00032996,9]
[392408018,1761441038080,-500.0,0.00032996,9]
[392408019,1761441038089,-500.0,0.00032996,9]
[392408020,1761441038099,-364.61705387,0.00032996,9]
[392408021,1761441038109,-500.0,0.00032996,9]
[392408022,1761441038121,-500.0,0.00032996,9]
[392408023,1761441038130,-500.0,0.00032996,9]
[392408024,1761441038139,-500.0,0.00032996,9]
[392408025,1761441038149,-500.0,0.00032996,9]
[392408026,1761441038158,-500.0,0.00032996,9]
[392408027,1761441038168,-688.32,0.00032996,9]
[392408028,1761441038177,-500.0,0.00032996,9]
[392408029,1761441038186,-500.0,0.00032996,9]
[392408030,1761441038195,-807.02,0.00032996,9]
[392408031,1761441038204,-500.0,0.00032996,9]
[392408032,1761441038214,-500.0,0.00032996,9]
[392408033,1761441038223,-500.0,0.00032996,9]
[392408034,1761441038243,-576.14,0.00032996,9]
[392408035,1761441038253,-500.0,0.00032996,9]
[392408036,1761441038263,-500.0,0.00032996,9]
[392408037,1761441038272,-500.0,0.00032996,9]
[392408038,1761441038282,-500.0,0.00032996,9]
[392408039,1761441038292,-500.0,0.00032996,9]
[392408040,1761441038302,-500.0,0.00032996,9]
[392408041,1761441038311,-500.0,0.00032996,9]
[392408042,1761441038321,-500.0,0.00032996,9]
[392408043,1761441038330,-624.552641,0.00032996,9]
[392408044,1761441038340,-500.0,0.00032996,9]
[392408045,1761441038349,-500.0,0.00032996,9]
[392408046,1761441038359,-151.0,0.00032996,30]
[392408047,1761441038369,-500.0,0.00032996,9]
[392408048,1761441038379,-500.0,0.00032996,9]
[392408049,1761441038388,-500.0,0.00032996,9]
[392408050,1761441038398,-500.0,0.00032996,9]
[392408051,1761441038407,-650.83,0.00032996,9]
[392408052,1761441038417,-500.0,0.00032996,9]
[392408053,1761441038426,-500.0,0.00032996,9]
[392408054,1761441038436,-385.72312463,0.00032996,9]
[392408055,1761441038445,-500.0,0.00032996,9]
[392408056,1761441038456,-500.0,0.00032996,9]
[392408057,1761441038465,-500.0,0.00032996,9]
[392408058,1761441038475,-500.0,0.00032996,9]
[392408059,1761441038484,-500.0,0.00032996,9]
[392408060,1761441038493,-500.0,0.00032996,9]
[392408061,1761441038503,-500.0,0.00032996,9]
[392408062,1761441038513,-500.0,0.00032996,9]
[392408063,1761441038523,-500.0,0.00032996,9]
[392408064,1761441038532,-500.0,0.00032996,9]
[392408065,1761441038542,-500.0,0.00032996,9]
[392408066,1761441038552,-561.10682402,0.00032996,9]
[392408067,1761441038561,-500.0,0.00032996,9]
[392408068,1761441038571,-500.0,0.00032996,9]
[392408069,1761441038580,-528.62,0.00032996,9]
[392408070,1761441038589,-500.0,0.00032996,9]
[392408071,1761441038599,-500.0,0.00032996,9]
[392408072,1761441038767,-500.0,0.00032996,9]
[392408073,1761441038777,-500.0,0.00032996,9]
[392408074,1761441038787,-500.0,0.00032996,9]
[392408075,1761441038797,-500.0,0.00032996,9]
[392408076,1761441038807,-500.0,0.00032996,9]
[392408077,1761441038817,-500.0,0.00032996,9]
[392408078,1761441038826,-500.0,0.00032996,9]
[392408079,1761441038835,-500.0,0.00032996,9]
[392408080,1761441038845,-500.0,0.00032996,9]
[392408081,1761441038855,-500.0,0.00032996,9]
[392408082,1761441038866,-528.26,0.00032996,9]
[392408083,1761441038875,-500.0,0.00032996,9]
[392408084,1761441038885,-500.0,0.00032996,9]
[392408085,1761441038894,-500.0,0.00032996,9]
[392408086,1761441038903,-500.0,0.00032996,9]
[392408087,1761441038912,-768.54,0.00032996,9]
[392408088,1761441038921,-500.0,0.00032996,9]
[392408089,1761441038931,-500.0,0.00032996,9]
[392408090,1761441038941,-500.0,0.00032996,9]
[392408091,1761441038950,-561.76,0.00032996,9]
[392408092,1761441038960,-500.0,0.00032996,9]
[392408093,1761441038969,-500.0,0.00032996,9]
[392408094,1761441038978,-532.04,0.00032996,9]
[392408095,1761441038987,-500.0,0.00032996,9]
[392408096,1761441038997,-500.0,0.00032996,9]
[392408097,1761441039006,-500.0,0.00032996,9]
[392408098,1761441039016,-500.0,0.00032996,9]
[392408099,1761441039025,-500.0,0.00032996,9]
[392408100,1761441039035,-500.0,0.00032996,9]
[392408101,1761441039044,-500.0,0.00032996,9]
[392408102,1761441039054,-500.0,0.00032996,9]
[392408103,1761441039063,-500.0,0.00032996,9]
[392408104,1761441039073,-500.0,0.00032996,2]
[392408105,1761441039083,-500.0,0.00032996,9]
[392408106,1761441039092,-500.0,0.00032996,9]
[392408107,1761441039102,-162.38935885,0.00032996,9]
[392408108,1761441039115,-500.0,0.00032996,9]
[392408109,1761441039126,-500.0,0.00032996,9]
[392408110,1761441039136,-3511.75,0.00032996,2]
[392408111,1761441039146,-589.67,0.00032996,2]
[392408112,1761441039155,-500.0,0.00032996,9]
[392408113,1761441039164,-441.86663887,0.00032996,9]
[392408114,1761441039173,-500.0,0.00032996,9]
[392408115,1761441039183,-500.0,0.00032996,9]
[392408116,1761441039192,-500.0,0.00032996,9]
[392408117,1761441039202,-500.0,0.00032996,9]
[392408118,1761441039212,-500.0,0.00032996,9]
[392408119,1761441039221,-500.0,0.00032996,9]
[392408120,1761441039230,-500.0,0.00032996,9]
[392408121,1761441039239,-500.0,0.00032996,9]
[392408122,1761441039248,-500.0,0.00032996,9]
[392408123,1761441039257,-500.0,0.00032996,2]
[392408124,1761441039267,-500.0,0.00032996,9]
[392408125,1761441039276,-500.0,0.00032996,9]
[392408126,1761441039285,-105795.2926,0.00032997,2]
[392408127,1761441039295,-5000.0,0.00032997,2]
[392408128,1761441039305,-133314.90705952,0.00033,2]
[392408129,1761441039697,-500.0,0.00032995,2]
[392408130,1761441039706,-500.0,0.00032996,9]
[392408131,1761441039716,-88891.7689742,0.00033,2]
[392408132,1761441039727,-183.58421202,0.00033,120]
[392408133,1761441039736,-200.0,0.00033,2]
[392408134,1761441039746,-1425.0,0.00033049,2]
[392408135,1761441039757,-1425.0,0.00033053,2]
[392408136,1761441039766,-10984.8393454,0.00033063,3]
[392408137,1761441039775,-500.0,0.00033073,5]
[392408138,1761441039784,-500.0,0.00033073,5]
[392408139,1761441039794,-500.0,0.00033073,5]
[392408140,1761441039806,-500.0,0.00033073,9]
[392408141,1761441039815,-946.16,0.00033073,9]
[392408142,1761441039825,-420.17603153,0.00033073,9]
[392408143,1761441039834,-678.64,0.00033073,9]
[392408144,1761441039843,-1000.0,0.00033075,2]
[392408145,1761441039852,-150.0,0.00033085,30]
[392408146,1761441039862,-150.0,0.00033085,30]
[392408147,1761441039871,-150.0,0.00033085,30]
[392408148,1761441039881,-150.0,0.00033085,30]
[392408149,1761441039890,-150.0,0.00033085,2]
[392408150,1761441039899,-150.0,0.00033085,30]
[392408151,1761441039908,-150.0,0.00033085,30]
[392408152,1761441039917,-150.0,0.00033085,30]
[392408153,1761441039926,-150.0,0.00033085,30]
[392408154,1761441039935,-500.0,0.00033085,30]
[392408155,1761441039945,-250.0,0.00033085,2]
[392408156,1761441039954,-150.0,0.00033085,30]
[392408158,1761441039963,-21969.6786907,0.00033085,3]
[392408159,1761441039973,-21969.6786907,0.00033086,3]
[392408160,1761441039982,-1425.0,0.00033088,2]
[392408161,1761441039992,-109848.393454,0.0003309,3]
[392408162,1761441040001,-95372.8915146,0.0003309,3]
[392408163,1761441040010,-1425.0,0.00033093,2]
[392408164,1761441040019,-500.0,0.00033094,2]
[392408165,1761441040028,-500.0,0.00033095,9]
[392408167,1761441040038,-500.0,0.00033095,9]
[392408168,1761441040047,-500.0,0.00033095,9]
[392408169,1761441040056,-500.0,0.00033095,9]
[392408170,1761441040066,-500.0,0.00033095,9]
[392408171,1761441040075,-500.0,0.00033095,9]
[392408172,1761441040084,-500.0,0.00033095,9]
[392408173,1761441040094,-500.0,0.00033095,9]
[392408174,1761441040106,-500.0,0.00033095,9]
[392408175,1761441040117,-500.0,0.00033095,9]
[392408176,1761441040126,-500.0,0.00033095,9]
[392408177,1761441040136,-300.0,0.00033095,2]
[392408178,1761441040145,-500.0,0.00033095,9]
[392408179,1761441040155,-500.0,0.00033095,9]
[392408180,1761441040164,-500.0,0.00033095,9]
[392408181,1761441040173,-500.0,0.00033095,9]
[392408182,1761441040187,-500.0,0.00033095,9]
[392408183,1761441040195,-500.0,0.00033095,9]
[392408184,1761441040205,-559.61,0.00033095,9]
[392408185,1761441040214,-500.0,0.00033095,9]
[392408186,1761441040223,-500.0,0.00033095,9]
[392408187,1761441040233,-500.0,0.00033095,9]
[392408188,1761441040243,-500.0,0.00033095,9]
[392408189,1761441040253,-500.0,0.00033095,9]
[392408190,1761441040263,-500.0,0.00033095,9]
[392408191,1761441040273,-500.0,0.00033095,9]
[392408192,1761441040283,-500.0,0.00033095,9]
[392408193,1761441040293,-500.0,0.00033095,9]
[392408194,1761441040303,-500.0,0.00033095,9]
[392408195,1761441040312,-500.0,0.00033095,9]
[392408196,1761441040320,-500.0,0.00033095,9]
[392408197,1761441040330,-500.0,0.00033095,9]
[392408198,1761441040339,-500.0,0.00033095,9]
[392408199,1761441040348,-500.0,0.00033095,9]
[392408200,1761441040358,-500.0,0.00033095,9]
[392408201,1761441040367,-500.0,0.00033095,9]
[392408202,1761441040376,-500.0,0.00033095,9]
[392408203,1761441040385,-500.0,0.00033095,9]
[392408204,1761441040394,-500.0,0.00033095,9]
[392408205,1761441040404,-300.0,0.00033095,10]
[392408206,1761441040413,-500.0,0.00033095,9]
[392408207,1761441040423,-500.0,0.00033095,9]
[392408208,1761441040432,-392.28944374,0.00033095,9]
[392408209,1761441040441,-500.0,0.00033095,9]
[392408210,1761441040451,-500.0,0.00033095,9]
[392408211,1761441040459,-300.0,0.00033095,10]
[392408212,1761441040469,-500.0,0.00033095,9]
[392408213,1761441040478,-500.0,0.00033095,9]
[392408214,1761441040488,-500.0,0.00033095,9]
[392408215,1761441040497,-366.0,0.00033096,5]
[392408216,1761441040507,-500.0,0.00033096,9]
[392408217,1761441040516,-507.23,0.00033096,9]
[392408218,1761441040525,-500.0,0.00033096,9]
[392408219,1761441040534,-500.0,0.00033096,9]
[392408220,1761441040543,-500.0,0.00033096,9]
[392408221,1761441040552,-500.0,0.00033096,9]
[392408222,1761441040562,-500.0,0.00033096,9]
[392408223,1761441040571,-500.0,0.00033096,9]
[392408224,1761441040580,-500.0,0.00033096,9]
[392408225,1761441040589,-500.0,0.00033096,9]
[392408226,1761441040598,-500.0,0.00033096,9]
[392408227,1761441040608,-500.0,0.00033096,9]
[392408228,1761441040617,-500.0,0.00033096,9]
[392408229,1761441040626,-500.0,0.00033096,9]
[392408230,1761441040636,-500.0,0.00033096,9]
[392408231,1761441040644,-500.0,0.00033096,9]
[392408232,1761441040653,-502.49985989,0.00033096,9]
[392408233,1761441040663,-500.0,0.00033096,9]
[392408234,1761441040671,-264.62207733,0.00033096,9]
[392408235,1761441040680,-500.0,0.00033096,9]
[392408236,1761441040690,-500.0,0.00033096,9]
[392408237,1761441040699,-500.0,0.00033096,9]
[392408238,1761441040708,-626.49,0.00033096,9]
[392408239,1761441040717,-500.0,0.00033096,9]
[392408240,1761441040726,-500.0,0.00033096,9]
[392408241,1761441040735,-500.0,0.00033096,9]
[392408242,1761441040744,-500.0,0.00033096,9]
[392408243,1761441040754,-500.0,0.00033096,9]
[392408244,1761441040763,-972.11,0.00033096,9]
[392408245,1761441040772,-235.3008834,0.00033096,9]
[392408246,1761441040781,-500.0,0.00033096,9]
[392408247,1761441040790,-500.0,0.00033096,9]
[392408248,1761441040799,-558.18,0.00033096,9]
[392408249,1761441040807,-500.0,0.00033096,9]
[392408250,1761441040816,-500.0,0.00033096,9]
[392408251,1761441040825,-500.0,0.00033096,9]
[392408252,1761441040834,-500.0,0.00033096,9]
[392408253,1761441040843,-500.0,0.00033096,9]
[392408254,1761441040852,-500.0,0.00033096,9]
[392408255,1761441040861,-500.0,0.00033096,9]
[392408256,1761441040869,-500.0,0.00033096,9]
[392408257,1761441040878,-500.0,0.00033096,9]
[392408258,1761441040887,-500.0,0.00033096,9]
[392408259,1761441040897,-276.98697267,0.00033096,9]
[392408260,1761441040906,-500.0,0.00033096,9]
[392408261,1761441040916,-500.0,0.00033096,9]
[392408262,1761441040925,-500.0,0.00033096,9]
[392408263,1761441040934,-500.0,0.00033096,9]
[392408264,1761441040943,-500.0,0.00033096,9]
[392408265,1761441040953,-500.0,0.00033096,9]
[392408266,1761441041066,-500.0,0.00033096,9]
[392408267,1761441041075,-500.0,0.00033096,9]
[392408268,1761441041087,-500.0,0.00033096,9]
[392408269,1761441041097,-500.0,0.00033096,9]
[392408270,1761441041106,-500.0,0.00033096,9]
[392408271,1761441041115,-500.0,0.00033096,9]
[392408272,1761441041124,-789.42,0.00033096,9]
[392408273,1761441041134,-500.0,0.00033096,9]
[392408274,1761441041143,-500.0,0.00033096,9]
[392408275,1761441041152,-500.0,0.00033096,9]
[392408276,1761441041161,-500.0,0.00033096,9]
[392408277,1761441041170,-500.0,0.00033096,9]
[392408278,1761441041179,-500.0,0.00033096,9]
[392408279,1761441041188,-500.0,0.00033096,9]
[392408280,1761441041196,-500.0,0.00033096,9]
[392408281,1761441041205,-1425.0,0.00033096,2]
[392408282,1761441041214,-1425.0,0.00033097,2]
[392408283,1761441041223,-300.0,0.00033099,10]
[392408284,1761441041232,-300.0,0.00033099,10]
[392408285,1761441041241,-151.0,0.00033099,2]
[392408286,1761441041251,-150.0,0.00033099,2]
[392408287,1761441041260,-242.85476594,0.00033099,2]
[392408288,1761441041270,-500.0,0.00033099,9]
[392408289,1761441041279,-500.0,0.00033099,2]
[392408290,1761441041288,-104409.79275281,0.000331,30]
[392408317,1761441045483,-500.0,0.00032995,9]
[392408318,1761441045493,-143.6224,0.00032995,9]
[392408484,1761441799955,365.82,0.00013699,2]
[392408503,1761442062821,2679.8002936,0.0002,5]
[392408529,1761442231916,-563.67589592,0.00018,2]
[392408530,1761442231927,-365.82,0.00020187,2]
[392408531,1761442231937,-250.0,0.00022206,2]
[392408532,1761442231947,-250.0,0.00023432,2]
[392408533,1761442231956,-365.82,0.00026676,2]
[392408534,1761442231967,-150.0,0.00029688,4]
[392408535,1761442231976,-166.66,0.00030187,30]
[392408536,1761442231987,-166.66,0.00030822,30]
[392408537,1761442231997,-168.0,0.00031264,2]
[392408538,1761442232008,-166.66,0.00031458,30]
[392408539,1761442232017,-500.0,0.00031496,7]
[392408540,1761442232027,-900.0,0.00031496,7]
[392408541,1761442232037,-150.0,0.00031614,2]
[392408542,1761442232048,-282.59,0.00031793,2]
[392408543,1761442232061,-401.02,0.00031804,2]
[392408544,1761442232072,-168.0,0.00031821,7]
[392408545,1761442232082,-504.61,0.00031837,2]
[392408546,1761442232092,-183.58421202,0.00032,120]
[392408547,1761442232103,-166.66,0.00032093,30]
[392408548,1761442232112,-699.88,0.00032118,120]
[392408549,1761442232126,-1600.0,0.00032199,3]
[392408550,1761442232135,-581.0,0.000322,3]
[392408551,1761442232145,-400.0,0.000322,3]
[392408552,1761442232155,-1567.13,0.00032202,2]
[392408553,1761442232167,-150.0,0.0003223,2]
[392408554,1761442232177,-500.0,0.00032231,2]
[392408555,1761442232187,-500.0,0.00032231,2]
[392408556,1761442232196,-500.0,0.00032231,2]
[392408557,1761442232205,-500.0,0.00032231,2]
[392408558,1761442232214,-500.0,0.00032231,2]
[392408559,1761442232223,-500.0,0.00032231,2]
[392408560,1761442232232,-500.0,0.00032231,2]
[392408561,1761442232242,-500.0,0.00032231,2]
[392408562,1761442232251,-500.0,0.00032231,2]
[392408563,1761442232264,-500.0,0.00032231,2]
[392408565,1761442232273,-500.0,0.00032231,2]
[392408567,1761442232283,-500.0,0.00032231,2]
[392408568,1761442232292,-500.0,0.00032231,2]
[392408569,1761442232301,-500.0,0.00032231,2]
[392408570,1761442232310,-500.0,0.00032231,2]
[392408571,1761442232319,-500.0,0.00032231,2]
[392408572,1761442232328,-500.0,0.00032231,2]
[392408573,1761442232336,-500.0,0.00032231,2]
[392408574,1761442232345,-500.0,0.00032231,2]
[392408575,1761442232354,-500.0,0.00032231,2]
[392408576,1761442232363,-500.0,0.00032231,2]
[392408577,1761442232372,-500.0,0.00032231,2]
[392408578,1761442232381,-500.0,0.00032231,2]
[392408580,1761442232390,-500.0,0.00032231,2]
[392408582,1761442232400,-500.0,0.00032231,2]
[392408583,1761442232409,-500.0,0.00032231,2]
[392408584,1761442232418,-500.0,0.00032231,2]
[392408585,1761442232428,-500.0,0.00032231,2]
[392408586,1761442232437,-500.0,0.00032231,2]
[392408588,1761442232447,-500.0,0.00032231,2]
[392408590,1761442232459,-500.0,0.00032231,2]
[392408591,1761442232469,-500.0,0.00032231,2]
[392408592,1761442232479,-499.98295695,0.00032231,2]
[392408593,1761442232488,-500.0,0.00032231,2]
[392408594,1761442232497,-500.0,0.00032231,2]
[392408595,1761442232507,-500.0,0.00032231,2]
[392408596,1761442232516,-500.0,0.00032231,2]
[392408597,1761442232526,-500.0,0.00032231,2]
[392408598,1761442232536,-500.0,0.00032231,2]
[392408599,1761442232545,-500.0,0.00032231,2]
[392408600,1761442232555,-500.0,0.00032231,2]
[392408601,1761442232563,-500.0,0.00032231,2]
[392408602,1761442232573,-500.0,0.00032231,2]
[392408603,1761442232583,-500.0,0.00032231,2]
[392408604,1761442232592,-500.0,0.00032231,2]
[392408605,1761442232601,-500.0,0.00032231,2]
[392408606,1761442232610,-500.0,0.00032231,2]
[392408607,1761442232620,-500.0,0.00032231,2]
[392408608,1761442232629,-199.84661255,0.00032231,2]
[392408609,1761442232639,-500.0,0.00032231,2]
[392408610,1761442232648,-500.0,0.00032231,2]
[392408611,1761442232658,-500.0,0.00032231,2]
[392408612,1761442232668,-500.0,0.00032231,2]
[392408613,1761442232677,-500.0,0.00032231,2]
[392408614,1761442232686,-500.0,0.00032231,2]
[392408615,1761442232695,-500.0,0.00032231,2]
[392408616,1761442232705,-500.0,0.00032231,2]
[392408617,1761442232714,-500.0,0.00032231,2]
[392408618,1761442232724,-197.88412066,0.00032231,2]
[392408619,1761442232733,-306.32,0.00032232,2]
[392408620,1761442232743,-1517.66,0.00032232,2]
[392408621,1761442232752,-150.99,0.00032232,2]
[392408622,1761442232771,-1108.54930696,0.00032232,2]
[392408623,1761442232825,-898.72069304,0.00032232,2]
[392408624,1761442232835,-999.99,0.00032232,2]
[392408625,1761442232845,-9999.99,0.00032232,2]
[392408626,1761442232855,-6255.82,0.00032232,2]
[392408627,1761442232864,-9999.99,0.00032232,2]
[392408628,1761442232874,-1059.97,0.00032232,2]
[392408629,1761442232883,-900.0,0.00032318,7]
[392408630,1761442233064,-166.66,0.00032417,2]
[392408631,1761442233077,-1085.0,0.000326,2]
[392408632,1761442233086,-166.66,0.00032729,30]
[392408633,1761442233095,-176.63809357,0.00032752,2]
[392408634,1761442233105,-1257.58038,0.0003277,2]
[392408635,1761442233115,-2071.80762668,0.00032773,2]
[392408636,1761442233132,-176.63809357,0.00032781,2]
[392408637,1761442233142,-2071.80762668,0.00032835,2]
[392408638,1761442233152,-176.63809357,0.00032835,2]
[392408639,1761442233162,-200.0,0.00032852,2]
[392408640,1761442233173,-322.6107,0.00032852,2]
[392408641,1761442233182,-250.0,0.00032852,2]
[392408642,1761442233193,-250.0,0.00032852,2]
[392408643,1761442233202,-250.0,0.00032852,2]
[392408644,1761442233213,-250.0,0.00032852,2]
[392408645,1761442233223,-250.0,0.00032852,2]
[392408646,1761442233232,-250.0,0.00032852,2]
[392408647,1761442233241,-250.0,0.00032852,2]
[392408648,1761442233251,-250.0,0.00032852,2]
[392408649,1761442233261,-250.0,0.00032852,2]
[392408650,1761442233270,-151.0,0.00032852,2]